fUSD/lending_fUSD_20240831
["ID","MTS","AMOUNT","RATE_DAILY","PERIOD"]
[336738799,1725095250909,-1055.38,0.0004,120]
[336738800,1725095250943,-500.0,0.0004,120]
[336738801,1725095250978,-500.0,0.0004,120]
[336738802,1725095251011,-1387.93,0.0004,120]
[336738803,1725095251044,-1707.8,0.0004,120]
[336738804,1725095251078,-500.0,0.0004,120]
[336738805,1725095251113,-450.40194596,0.0004,120]
[336738806,1725095251149,-537.31,0.0004,120]
[336738807,1725095251187,-1038.22,0.0004,120]
[336738808,1725095251227,-500.0,0.0004,120]
[336738809,1725095251266,-500.0,0.0004,120]
[336738810,1725095251305,-500.0,0.0004,120]
[336738811,1725095251343,-1188.85,0.0004,120]
[336738812,1725095251381,-500.0,0.0004,120]
[336738813,1725095251418,-708.93,0.0004,120]
[336738814,1725095251456,-1013.32,0.0004,120]
[336738815,1725095251494,-500.0,0.0004,120]
[336738816,1725095251533,-922.41,0.0004,120]
[336738817,1725095251573,-518.04,0.0004,120]
[336738818,1725095251613,-1299.67,0.0004,120]
[336738819,1725095251653,-500.0,0.0004,120]
[336738820,1725095251693,-13620.0,0.0004,120]
[336738821,1725095251733,-500.0,0.0004,120]
[336738822,1725095251774,-484.5449471,0.0004,120]
[336738823,1725095251814,-500.0,0.0004,120]
[336738824,1725095251853,-500.0,0.0004,120]
[336738825,1725095251892,-500.0,0.0004,120]
[336738826,1725095251932,-500.0,0.0004,120]
[336738827,1725095251973,-154.809154,0.0004,120]
[336738828,1725095252016,-500.0,0.0004,120]
[336738829,1725095252056,-752.56,0.0004,120]
[336738830,1725095252097,-2630.66,0.0004,120]
[336738833,1725095252137,-884.82,0.0004,120]
[336738836,1725095252177,-500.0,0.0004,120]
[336738837,1725095252214,-894.96,0.0004,120]
[336738838,1725095252254,-1104.47,0.0004,120]
[336738839,1725095252291,-500.0,0.0004,120]
[336738840,1725095252332,-1283.18,0.0004,120]
[336738841,1725095252368,-350.08478659,0.0004,120]
[336738842,1725095252405,-494.42564401,0.0004,120]
[336738843,1725095252442,-1182.0,0.0004,120]
[336738844,1725095252479,-500.0,0.0004,120]
[336738845,1725095252519,-500.0,0.0004,120]
[336738846,1725095252560,-500.0,0.0004,120]
[336738847,1725095252601,-4403.97,0.0004,120]
[336738848,1725095252642,-991.63,0.0004,120]
[336738849,1725095252680,-1615.56,0.0004,120]
[336738850,1725095252721,-500.0,0.0004,120]
[336738851,1725095252759,-500.0,0.0004,120]
[336738852,1725095252796,-1461.45,0.0004,120]
[336738853,1725095252832,-1066.46,0.0004,120]
[336738854,1725095252868,-1358.03,0.0004,120]
[336738855,1725095252904,-2089.75,0.0004,120]
[336738856,1725095252939,-500.0,0.0004,120]
[336738857,1725095252973,-500.0,0.0004,120]
[336738858,1725095253008,-500.0,0.0004,120]
[336738859,1725095253043,-7958.09,0.0004,120]
[336738860,1725095253079,-980.36,0.0004,120]
[336738861,1725095253117,-832.48,0.0004,120]
[336738862,1725095253153,-1180.6,0.0004,120]
[336738863,1725095253188,-500.0,0.0004,120]
[336738864,1725095253230,-555.11,0.0004,120]
[336738865,1725095253268,-500.0,0.0004,120]
[336738866,1725095253489,-2281.84,0.0004,120]
[336738867,1725095253530,-500.0,0.0004,120]
[336738868,1725095253574,-14453.84,0.0004,120]
[336738869,1725095253614,-623.33,0.0004,120]
[336738870,1725095253654,-640.92,0.0004,120]
[336738871,1725095253696,-583.68,0.0004,120]
[336738872,1725095253736,-507.13,0.0004,120]
[336738873,1725095253777,-500.0,0.0004,120]
[336738874,1725095253820,-500.0,0.0004,120]
[336738875,1725095253859,-638.13,0.0004,120]
[336738876,1725095253901,-1931.71,0.0004,120]
[336738877,1725095253941,-1435.64,0.0004,120]
[336738878,1725095253980,-1033.65,0.0004,120]
[336738879,1725095254021,-1120.04,0.0004,120]
[336738880,1725095254059,-4153.75,0.0004,120]
[336738881,1725095254098,-500.0,0.0004,120]
[336738882,1725095254137,-500.0,0.0004,120]
[336738883,1725095254174,-2080.67,0.0004,120]
[336738884,1725095254212,-500.0,0.0004,120]
[336738885,1725095254253,-2256.05,0.0004,120]
[336738886,1725095254289,-3259.35,0.0004,120]
[336738887,1725095254326,-500.0,0.0004,120]
[336738888,1725095254361,-507.63,0.0004,120]
[336738889,1725095254397,-500.0,0.0004,120]
[336738890,1725095254435,-1116.05,0.0004,120]
[336738891,1725095254474,-500.0,0.0004,120]
[336738892,1725095254512,-1302.41,0.0004,120]
[336738893,1725095254554,-500.0,0.0004,120]
[336738894,1725095254595,-923.19,0.0004,120]
[336738895,1725095254636,-500.0,0.0004,120]
[336738896,1725095254677,-500.0,0.0004,120]
[336738897,1725095254716,-8312.25,0.0004,120]
[336738898,1725095254755,-2675.85,0.0004,120]
[336738899,1725095254794,-500.0,0.0004,120]
[336738900,1725095254831,-500.0,0.0004,120]
[336738901,1725095254868,-1665.75,0.0004,120]
[336738902,1725095254906,-942.12,0.0004,120]
[336738903,1725095254944,-5129.59,0.0004,120]
[336738904,1725095254980,-3247.83,0.0004,120]
[336738905,1725095255017,-500.0,0.0004,120]
[336738906,1725095255053,-2015.1,0.0004,120]
[336738907,1725095255089,-500.0,0.0004,120]
[336738908,1725095255125,-500.0,0.0004,120]
[336738909,1725095255159,-500.0,0.0004,120]
[336738910,1725095255194,-1000.31,0.0004,120]
[336738911,1725095255233,-500.0,0.0004,120]
[336738912,1725095255273,-3449.15,0.0004,120]
[336738913,1725095255310,-500.0,0.0004,120]
[336738914,1725095255350,-500.0,0.0004,120]
[336738915,1725095255389,-4068.29,0.0004,120]
[336738916,1725095255426,-895.39,0.0004,120]
[336738917,1725095255464,-11552.84,0.0004,120]
[336738918,1725095255500,-1205.57,0.0004,120]
[336738919,1725095255538,-1246.58,0.0004,120]
[336738920,1725095255578,-3120.34,0.0004,120]
[336738921,1725095255615,-602.93,0.0004,120]
[336738922,1725095255653,-1619.57,0.0004,120]
[336738923,1725095255691,-868.68,0.0004,120]
[336738924,1725095255730,-3958.42,0.0004,120]
[336738925,1725095255769,-523.71,0.0004,120]
[336738926,1725095255807,-577.35,0.0004,120]
[336738927,1725095255844,-23284.65,0.0004,120]
[336738928,1725095255879,-500.0,0.0004,120]
[336738929,1725095255916,-628.05,0.0004,120]
[336738930,1725095255956,-3149.38,0.0004,120]
[336738931,1725095255994,-4199.79,0.0004,120]
[336738932,1725095256031,-525.64,0.0004,120]
[336738933,1725095256066,-500.0,0.0004,120]
[336738934,1725095256104,-500.0,0.0004,120]
[336738935,1725095256141,-500.0,0.0004,120]
[336738936,1725095256181,-2061.96,0.0004,120]
[336738937,1725095256222,-2848.13,0.0004,120]
[336738938,1725095256266,-556.09,0.0004,120]
[336738939,1725095256306,-500.0,0.0004,120]
[336738940,1725095256342,-1770.95,0.0004,120]
[336738941,1725095256377,-500.0,0.0004,120]
[336738942,1725095256414,-2969.11,0.0004,120]
[336738943,1725095256448,-818.9,0.0004,120]
[336738944,1725095256484,-1130.01,0.0004,120]
[336738945,1725095256524,-4462.15,0.0004,120]
[336738946,1725095256564,-1535.29,0.0004,120]
[336738947,1725095256604,-668.3,0.0004,120]
[336738948,1725095256642,-500.0,0.0004,120]
[336738949,1725095256680,-500.0,0.0004,120]
[336738950,1725095256718,-500.0,0.0004,120]
[336738951,1725095256755,-500.0,0.0004,120]
[336738952,1725095256793,-500.0,0.0004,120]
[336738953,1725095256831,-643.37,0.0004,120]
[336738954,1725095256868,-768.71,0.0004,120]
[336738955,1725095256908,-3633.76,0.0004,120]
[336738956,1725095256946,-500.0,0.0004,120]
[336738957,1725095256986,-895.7,0.0004,120]
[336738958,1725095257027,-500.0,0.0004,120]
[336738959,1725095257070,-856.48,0.0004,120]
[336738960,1725095257113,-1174.72,0.0004,120]
[336738961,1725095257156,-500.0,0.0004,120]
[336738962,1725095257198,-6112.91,0.0004,120]
[336738963,1725095257241,-1112.91,0.0004,120]
[336738964,1725095257280,-150.0,0.00040214,120]
[336738965,1725095257323,-217.10974309,0.000403,120]
[336738966,1725095257367,-150.0,0.00040475,120]
[336738967,1725095257407,-1407.16,0.00040547,120]
[336738968,1725095257448,-500.0,0.00040547,120]
[336738969,1725095257485,-500.0,0.00040547,120]
[336738970,1725095257522,-500.0,0.00040547,120]
[336738971,1725095257756,-1467.59,0.00040547,120]
[336738972,1725095257798,-500.0,0.00040547,120]
[336738973,1725095257839,-500.0,0.00040547,120]
[336738974,1725095257879,-842.04,0.00040547,120]
[336738975,1725095257918,-1473.69,0.00040547,120]
[336738976,1725095257955,-501.52613337,0.00040547,120]
[336738977,1725095257990,-500.0,0.00040547,120]
[336738978,1725095258024,-500.0,0.00040547,120]
[336738979,1725095258059,-500.0,0.00040547,120]
[336738980,1725095258097,-500.0,0.00040547,120]
[336738981,1725095258134,-979.53,0.00040547,120]
[336738982,1725095258172,-540.01,0.00040547,120]
[336738983,1725095258209,-600.0,0.00040547,120]
[336738984,1725095258251,-1167.72,0.00040547,120]
[336738985,1725095258290,-500.0,0.00040547,120]
[336738986,1725095258332,-500.0,0.00040547,120]
[336738987,1725095258371,-500.0,0.00040547,120]
[336738988,1725095258408,-911.85,0.00040547,120]
[336738989,1725095258444,-500.0,0.00040547,120]
[336738990,1725095258479,-500.0,0.00040547,120]
[336738991,1725095258516,-679.36,0.00040547,120]
[336738992,1725095258552,-500.0,0.00040547,120]
[336738993,1725095258587,-500.0,0.00040547,120]
[336738994,1725095258622,-500.0,0.00040547,120]
[336738995,1725095258658,-1545.2,0.00040547,120]
[336738996,1725095258695,-500.0,0.00040547,120]
[336738997,1725095258731,-655.76,0.00040547,120]
[336738998,1725095258766,-1118.32,0.00040547,120]
[336738999,1725095258801,-500.0,0.00040547,120]
[336739000,1725095258835,-1631.57,0.00040547,120]
[336739001,1725095258870,-824.0,0.00040547,120]
[336739002,1725095258906,-756.83,0.00040547,120]
[336739003,1725095258941,-500.0,0.00040547,120]
[336739004,1725095258977,-991.8,0.00040547,120]
[336739005,1725095259012,-1259.56,0.00040547,120]
[336739006,1725095259046,-500.0,0.00040547,120]
[336739007,1725095259081,-840.83,0.00040547,120]
[336739008,1725095259118,-500.0,0.00040547,120]
[336739009,1725095259153,-394.00459307,0.00040547,120]
[336739010,1725095259187,-1121.56,0.00040547,120]
[336739011,1725095259221,-1216.46,0.00040547,120]
[336739012,1725095259259,-500.0,0.00040547,120]
[336739013,1725095259293,-747.34,0.00040547,120]
[336739014,1725095259326,-500.0,0.00040547,120]
[336739015,1725095259359,-500.0,0.00040547,120]
[336739016,1725095259394,-500.0,0.00040547,120]
[336739017,1725095259429,-742.95,0.00040547,120]
[336739018,1725095259464,-514.16,0.00040547,120]
[336739019,1725095259499,-1104.96,0.00040547,120]
[336739020,1725095259537,-887.03,0.00040547,120]
[336739021,1725095259575,-500.0,0.00040547,120]
[336739022,1725095259613,-500.0,0.00040547,120]
[336739023,1725095259650,-965.66,0.00040547,120]
[336739024,1725095259687,-953.7,0.00040547,120]
[336739025,1725095259724,-633.15,0.00040547,120]
[336739026,1725095259763,-500.0,0.00040547,120]
[336739027,1725095259801,-717.28,0.00040547,120]
[336739028,1725095259839,-500.0,0.00040547,120]
[336739029,1725095259874,-749.88,0.00040547,120]
[336739030,1725095259910,-688.57,0.00040547,120]
[336739031,1725095259946,-647.63,0.00040547,120]
[336739032,1725095259983,-500.0,0.00040547,120]
[336739033,1725095260020,-500.0,0.00040547,120]
[336739034,1725095260054,-500.0,0.00040547,120]
[336739035,1725095260091,-618.36,0.00040547,120]
[336739036,1725095260129,-520.93,0.00040547,120]
[336739037,1725095260165,-1005.62,0.00040547,120]
[336739038,1725095260203,-1201.81,0.00040547,120]
[336739039,1725095260238,-1032.12,0.00040547,120]
[336739040,1725095260275,-500.0,0.00040547,120]
[336739041,1725095260309,-822.77,0.00040547,120]
[336739042,1725095260343,-500.0,0.00040547,120]
[336739043,1725095260376,-500.0,0.00040547,120]
[336739044,1725095260410,-500.0,0.00040547,120]
[336739045,1725095260444,-500.0,0.00040547,120]
[336739046,1725095260478,-500.0,0.00040547,120]
[336739047,1725095260512,-629.34,0.00040547,120]
[336739048,1725095260549,-891.7,0.00040547,120]
[336739049,1725095260587,-500.0,0.00040547,120]
[336739050,1725095260623,-690.68,0.00040547,120]
[336739051,1725095260660,-500.0,0.00040547,120]
[336739052,1725095260695,-500.0,0.00040547,120]
[336739053,1725095260730,-537.07,0.00040547,120]
[336739054,1725095260764,-500.0,0.00040547,120]
[336739055,1725095260797,-747.01,0.00040547,120]
[336739056,1725095260830,-1211.55,0.00040547,120]
[336739057,1725095260864,-500.0,0.00040547,120]
[336739058,1725095260900,-1331.69,0.00040547,120]
[336739059,1725095260935,-500.0,0.00040547,120]
[336739060,1725095260969,-500.0,0.00040547,120]
[336739061,1725095261004,-500.0,0.00040547,120]
[336739062,1725095261040,-500.0,0.00040547,120]
[336739063,1725095261074,-794.03,0.00040547,120]
[336739064,1725095261110,-500.0,0.00040547,120]
[336739065,1725095261146,-500.0,0.00040547,120]
[336739066,1725095261181,-500.0,0.00040547,120]
[336739067,1725095261216,-500.0,0.00040547,120]
[336739068,1725095261254,-500.0,0.00040547,120]
[336739069,1725095261288,-555.24,0.00040547,120]
[336739070,1725095261322,-710.71,0.00040547,120]
[336739071,1725095261356,-1225.12,0.00040547,120]
[336739072,1725095261389,-500.0,0.00040547,120]
[336739073,1725095261424,-557.74,0.00040547,120]
[336739074,1725095261459,-1907.35,0.00040547,120]
[336739075,1725095261492,-500.0,0.00040547,120]
[336739076,1725095261716,-745.66,0.00040547,120]
[336739077,1725095261754,-242.04487243,0.00040547,120]
[336739078,1725095261791,-500.0,0.00040547,120]
[336739079,1725095261827,-500.0,0.00040547,120]
[336739080,1725095261863,-500.0,0.00040547,120]
[336739081,1725095261898,-2051.45,0.00040547,120]
[336739082,1725095261934,-500.0,0.00040547,120]
[336739083,1725095261970,-994.45,0.00040547,120]
[336739084,1725095262006,-962.34,0.00040547,120]
[336739085,1725095262041,-500.0,0.00040547,120]
[336739086,1725095262079,-500.0,0.00040547,120]
[336739087,1725095262119,-1123.23,0.00040547,120]
[336739088,1725095262156,-459.20657461,0.00040547,120]
[336739089,1725095262193,-500.0,0.00040547,120]
[336739090,1725095262228,-500.0,0.00040547,120]
[336739091,1725095262270,-500.0,0.00040547,120]
[336739092,1725095262308,-500.0,0.00040547,120]
[336739093,1725095262343,-500.0,0.00040547,120]
[336739094,1725095262379,-1180.05,0.00040547,120]
[336739095,1725095262417,-743.34,0.00040547,120]
[336739096,1725095262452,-500.0,0.00040547,120]
[336739097,1725095262486,-762.64,0.00040547,120]
[336739098,1725095262521,-500.0,0.00040547,120]
[336739099,1725095262558,-500.0,0.00040547,120]
[336739100,1725095262597,-502.32,0.00040547,120]
[336739101,1725095262635,-1156.19,0.00040547,120]
[336739102,1725095262674,-500.0,0.00040547,120]
[336739103,1725095262711,-500.0,0.00040547,120]
[336739104,1725095262749,-500.0,0.00040547,120]
[336739105,1725095262787,-2132.37,0.00040547,120]
[336739106,1725095262824,-679.85,0.00040547,120]
[336739107,1725095262862,-778.94,0.00040547,120]
[336739108,1725095262898,-500.0,0.00040547,120]
[336739109,1725095262935,-500.0,0.00040547,120]
[336739110,1725095262971,-500.0,0.00040547,120]
[336739111,1725095263007,-1655.98,0.00040547,120]
[336739112,1725095263043,-641.92,0.00040547,120]
[336739113,1725095263080,-500.0,0.00040547,120]
[336739114,1725095263118,-721.55,0.00040547,120]
[336739115,1725095263154,-500.0,0.00040547,120]
[336739116,1725095263190,-500.0,0.00040547,120]
[336739117,1725095263226,-1698.11,0.00040547,120]
[336739118,1725095263263,-565.51,0.00040547,120]
[336739119,1725095263300,-500.0,0.00040547,120]
[336739120,1725095263337,-500.0,0.00040547,120]
[336739121,1725095263374,-500.0,0.00040547,120]
[336739122,1725095263410,-500.0,0.00040547,120]
[336739123,1725095263446,-1767.67,0.00040547,120]
[336739124,1725095263482,-500.0,0.00040547,120]
[336739125,1725095263519,-500.0,0.00040547,120]
[336739126,1725095263557,-1166.82,0.00040547,120]
[336739127,1725095263595,-500.0,0.00040547,120]
[336739128,1725095263635,-500.0,0.00040547,120]
[336739129,1725095263673,-500.0,0.00040547,120]
[336739130,1725095263714,-500.0,0.00040547,120]
[336739131,1725095263756,-500.0,0.00040547,120]
[336739132,1725095263800,-500.0,0.00040547,120]
[336739133,1725095263841,-781.78,0.00040547,120]
[336739134,1725095263882,-549.02,0.00040547,120]
[336739135,1725095263923,-879.7,0.00040547,120]
[336739136,1725095263964,-1120.93,0.00040547,120]
[336739137,1725095264006,-500.0,0.00040547,120]
[336739138,1725095264046,-537.67705078,0.00040547,120]
[336739139,1725095264087,-2000.0,0.00040547,120]
[336739140,1725095264128,-850.45,0.00040547,120]
[336739141,1725095264168,-1405.32,0.00040547,120]
[336739142,1725095264207,-500.0,0.00040547,120]
[336739143,1725095264247,-500.0,0.00040547,120]
[336739144,1725095264286,-500.0,0.00040547,120]
[336739145,1725095264325,-1626.86,0.00040547,120]
[336739146,1725095264364,-500.0,0.00040547,120]
[336739147,1725095264402,-500.0,0.00040547,120]
[336739148,1725095264441,-500.0,0.00040547,120]
[336739149,1725095264483,-500.0,0.00040547,120]
[336739150,1725095264525,-3231.8,0.00040547,120]
[336739151,1725095264566,-720.15,0.00040547,120]
[336739152,1725095264610,-952.01,0.00040547,120]
[336739153,1725095264651,-500.0,0.00040547,120]
[336739154,1725095264691,-500.0,0.00040547,120]
[336739155,1725095264730,-500.0,0.00040547,120]
[336739156,1725095264768,-1826.94,0.00040547,120]
[336739157,1725095264805,-500.0,0.00040547,120]
[336739158,1725095264841,-767.31,0.00040547,120]
[336739159,1725095264876,-4817.96,0.00040547,120]
[336739160,1725095264919,-1468.77,0.00040547,120]
[336739161,1725095264958,-500.0,0.00040547,120]
[336739162,1725095264999,-679.65,0.00040547,120]
[336739163,1725095265037,-500.0,0.00040547,120]
[336739164,1725095265077,-833.01,0.00040547,120]
[336739165,1725095265117,-536.46,0.00040547,120]
[336739166,1725095265155,-500.0,0.00040547,120]
[336739167,1725095265194,-500.0,0.00040547,120]
[336739168,1725095265233,-500.0,0.00040547,120]
[336739169,1725095265271,-1436.9,0.00040547,120]
[336739170,1725095265310,-502.47492309,0.00040547,120]
[336739171,1725095265349,-717.79,0.00040547,120]
[336739172,1725095265386,-500.0,0.00040547,120]
[336739173,1725095265423,-911.59,0.00040547,120]
[336739174,1725095265460,-1096.58,0.00040547,120]
[336739175,1725095265498,-931.07,0.00040547,120]
[336739176,1725095265536,-500.0,0.00040547,120]
[336739177,1725095265574,-727.87,0.00040547,120]
[336739178,1725095265612,-1205.13,0.00040547,120]
[336739179,1725095265651,-3164.47,0.00040547,120]
[336739180,1725095265882,-801.74,0.00040547,120]
[336739181,1725095265918,-500.0,0.00040547,120]
[336739182,1725095265951,-505.92,0.00040547,120]
[336739183,1725095265984,-500.0,0.00040547,120]
[336739184,1725095266016,-532.71,0.00040547,120]
[336739185,1725095266049,-1669.33,0.00040547,120]
[336739186,1725095266083,-500.0,0.00040547,120]
[336739187,1725095266118,-500.0,0.00040547,120]
[336739188,1725095266152,-1066.37,0.00040547,120]
[336739189,1725095266186,-622.08,0.00040547,120]
[336739190,1725095266221,-1994.12,0.00040547,120]
[336739191,1725095266260,-500.0,0.00040547,120]
[336739192,1725095266297,-500.0,0.00040547,120]
[336739193,1725095266333,-1009.62,0.00040547,120]
[336739194,1725095266366,-500.0,0.00040547,120]
[336739195,1725095266400,-740.53,0.00040547,120]
[336739196,1725095266433,-500.0,0.00040547,120]
[336739197,1725095266468,-1230.33,0.00040547,120]
[336739198,1725095266503,-1763.31,0.00040547,120]
[336739199,1725095266538,-500.0,0.00040547,120]
[336739200,1725095266573,-250.48795852,0.00040547,120]
[336739201,1725095266609,-606.13,0.00040547,120]
[336739202,1725095266644,-500.0,0.00040547,120]
[336739203,1725095266679,-500.0,0.00040547,120]
[336739204,1725095266714,-500.0,0.00040547,120]
[336739205,1725095266750,-980.1,0.00040547,120]
[336739206,1725095266784,-988.12,0.00040547,120]
[336739207,1725095266819,-530.81,0.00040547,120]
[336739208,1725095266854,-924.86,0.00040547,120]
[336739209,1725095266888,-500.0,0.00040547,120]
[336739210,1725095266924,-500.0,0.00040547,120]
[336739211,1725095266961,-3827.58,0.00040547,120]
[336739212,1725095266997,-500.0,0.00040547,120]
[336739213,1725095267036,-3646.24,0.00040547,120]
[336739214,1725095267074,-708.43,0.00040547,120]
[336739215,1725095267114,-500.0,0.00040547,120]
[336739216,1725095267152,-4493.23,0.00040547,120]
[336739217,1725095267187,-728.19,0.00040547,120]
[336739218,1725095267223,-500.0,0.00040547,120]
[336739219,1725095267263,-950.06,0.00040547,120]
[336739220,1725095267299,-500.0,0.00040547,120]
[336739221,1725095267335,-575.64,0.00040547,120]
[336739222,1725095267372,-1920.7,0.00040547,120]
[336739223,1725095267406,-1812.32,0.00040547,120]
[336739224,1725095267441,-500.0,0.00040547,120]
[336739225,1725095267475,-507.60511005,0.00040547,120]
[336739226,1725095267510,-1524.42,0.00040547,120]
[336739227,1725095267546,-500.0,0.00040547,120]
[336739228,1725095267584,-1447.18,0.00040547,120]
[336739229,1725095267620,-500.0,0.00040547,120]
[336739230,1725095267658,-500.0,0.00040547,120]
[336739231,1725095267694,-500.0,0.00040547,120]
[336739232,1725095267728,-501.23889296,0.00040547,120]
[336739233,1725095267763,-592.47,0.00040547,120]
[336739234,1725095267799,-500.0,0.00040547,120]
[336739235,1725095267835,-500.0,0.00040547,120]
[336739236,1725095267872,-500.0,0.00040547,120]
[336739237,1725095267908,-2064.17,0.00040547,120]
[336739238,1725095267943,-1875.57,0.00040547,120]
[336739239,1725095267976,-500.0,0.00040547,120]
[336739240,1725095268011,-1128.77,0.00040547,120]
[336739241,1725095268046,-501.67845205,0.00040547,120]
[336739242,1725095268080,-1217.2,0.00040547,120]
[336739243,1725095268117,-1083.85,0.00040547,120]
[336739244,1725095268153,-500.0,0.00040547,120]
[336739245,1725095268189,-500.0,0.00040547,120]
[336739246,1725095268223,-1019.1,0.00040547,120]
[336739247,1725095268262,-500.0,0.00040547,120]
[336739248,1725095268300,-710.75,0.00040547,120]
[336739249,1725095268339,-500.0,0.00040547,120]
[336739250,1725095268374,-517.99,0.00040547,120]
[336739251,1725095268408,-515.96998519,0.00040547,120]
[336739252,1725095268443,-675.18,0.00040547,120]
[336739253,1725095268476,-500.0,0.00040547,120]
[336739254,1725095268513,-500.0,0.00040547,120]
[336739255,1725095268550,-1486.52,0.00040547,120]
[336739256,1725095268586,-500.0,0.00040547,120]
[336739257,1725095268622,-500.0,0.00040547,120]
[336739258,1725095268658,-2753.3,0.00040547,120]
[336739259,1725095268692,-583.94,0.00040547,120]
[336739260,1725095268727,-738.68,0.00040547,120]
[336739261,1725095268762,-500.0,0.00040547,120]
[336739262,1725095268797,-500.0,0.00040547,120]
[336739263,1725095268832,-500.0,0.00040547,120]
[336739264,1725095268869,-500.0,0.00040547,120]
[336739265,1725095268904,-500.0,0.00040547,120]
[336739266,1725095268940,-719.07,0.00040547,120]
[336739267,1725095268975,-500.0,0.00040547,120]
[336739268,1725095269013,-3951.8,0.00040547,120]
[336739269,1725095269048,-500.0,0.00040547,120]
[336739270,1725095269084,-601.72,0.00040547,120]
[336739271,1725095269121,-1031.98,0.00040547,120]
[336739272,1725095269156,-500.0,0.00040547,120]
[336739273,1725095269191,-1766.78,0.00040547,120]
[336739274,1725095269226,-500.0,0.00040547,120]
[336739275,1725095269263,-743.24,0.00040547,120]
[336739276,1725095269300,-2762.25,0.00040547,120]
[336739277,1725095269338,-504.08,0.00040547,120]
[336739278,1725095269372,-1073.92,0.00040547,120]
[336739279,1725095269405,-500.0,0.00040547,120]
[336739280,1725095269440,-732.6,0.00040547,120]
[336739281,1725095269475,-500.0,0.00040547,120]
[336739282,1725095269510,-500.0,0.00040547,120]
[336739283,1725095269549,-1147.38,0.00040547,120]
[336739284,1725095269738,-610.57,0.00040547,120]
[336739285,1725095269817,-500.0,0.00040547,120]
[336739286,1725095269854,-500.0,0.00040547,120]
[336739287,1725095269892,-1682.94,0.00040547,120]
[336739288,1725095269928,-1286.64,0.00040547,120]
[336739289,1725095269962,-642.6,0.00040547,120]
[336739290,1725095269996,-500.0,0.00040547,120]
[336739291,1725095270032,-1185.99,0.00040547,120]
[336739292,1725095270066,-500.0,0.00040547,120]
[336739293,1725095270101,-1364.66,0.00040547,120]
[336739294,1725095270137,-702.01,0.00040547,120]
[336739295,1725095270172,-1499.64,0.00040547,120]
[336739296,1725095270206,-500.0,0.00040547,120]
[336739297,1725095270240,-3311.22,0.00040547,120]
[336739298,1725095270274,-294.18504928,0.00040547,120]
[336739299,1725095270310,-647.07,0.00040547,120]
[336739300,1725095270346,-1454.66,0.00040547,120]
[336739301,1725095270380,-500.0,0.00040547,120]
[336739302,1725095270415,-500.0,0.00040547,120]